[Event "39th Citta Arco Open 2017"]
[Site "Arco"]
[Date "2017.10.09"]
[Round "2.6"]
[White "Gaprindashvili, Valeriane"]
[Black "Giancotti, Eraldo"]
[Result "1-0"]
[ECO "E43"]
[WhiteElo "2352"]
[BlackElo "2094"]
[Annotator "ChessBase"]
[PlyCount "67"]
[EventType "swiss"]
[EventCountry "ITA"]
[TimeControl "40/5400+30:1800+30"]

1. Nf3 {[%emt 0:00:30]} Nf6 {[%emt 0:02:00]} 2. d4 {[%emt 0:00:30]} e6 {[%emt 0:00:30]} 3. e3 {[%emt 0:00:30]} b6 {[%emt 0:01:30]} 4. c4 {[%emt 0:00:30]} Bb4+ {[%emt 0:00:30]} 5. Nc3 {[%emt 0:00:30]} Bb7 {[%emt 0:01:30]} 6. Bd3 {[%emt 0:00:00]} O-O {[%emt 0:00:30]} 7. O-O {[%emt 0:00:00]} c5 {[%emt 0:02:30]} 8. d5 {[%emt 0:05:30]} Bxc3 {[%emt 0:02:30]} 9. bxc3 {[%emt 0:00:00]} exd5 {[%emt 0:00:30]} 10. cxd5 {[%emt 0:00:00]} Bxd5 {[%emt 0:03:30]} 11. c4 {[%emt 0:01:30]} Bb7 {[%emt 0:07:30]} 12. Bb2 {[%emt 0:00:30]} Nc6 {[%emt 0:04:30]} 13. Ng5 {[%emt 0:04:30]} Nb4 {[%emt 0:08:30]} 14. Bxf6 {[%emt 0:06:30]} Qxf6 {[%emt 0:03:30]} 15. Bxh7+ {[%emt 0:00:30]} Kh8 {[%emt 0:00:30]} 16. f4 {[%emt 0:01:30]} Rad8 {[%emt 0:06:30]} 17. a3 {[%emt 0:03:30]} Nc6 {[%emt 0:01:30]} 18. Be4 {[%emt 0:03:30]} g6 {[%emt 0:03:30]} 19. h4 {[%emt 0:02:30]} d5 {[%emt 0:05:30]} 20. Bxd5 {[%emt 0:03:30]} Na5 {[%emt 0:05:30]} 21. Qf3 {[%emt 0:02:30]} Ba6 {[%emt 0:06:30]} 22. Rac1 {[%emt 0:02:30]} Kg7 {[%emt 0:01:30]} 23. f5 {[%emt 0:03:30]} gxf5 {[%emt 0:04:30]} 24. Qg3 {[%emt 0:01:30]} Kh8 {[%emt 0:01:30]} 25. Qc7 {[%emt 0:04:30]} Rxd5 {[%emt 0:01:30]} 26. cxd5 {[%emt 0:00:00]} Bxf1 {[%emt 0:00:30]} 27. Rxf1 {[%emt 0:00:00]} Nc4 {[%emt 0:04:30]} 28. Qf4 {[%emt 0:04:30]} b5 {[%emt 0:01:30]} 29. Ne4 {[%emt 0:02:30]} Qg7 {[%emt 0:01:48]} 30. Nxc5 {[%emt 0:05:30]} Rg8 {[%emt 0:04:26]} 31. Rf2 {[%emt 0:00:00]} Ne5 {[%emt 0:03:47]} 32. Qxf5 {[%emt 0:01:00]} Qg3 {[%emt 0:05:42]} 33. Qh5+ {[%emt 0:01:30]} Kg7 {[%emt 0:00:05]} 34. Ne4 {[%emt 0:00:30]} 1-0

[Event "39th Citta Arco Open 2017"]
[Site "Arco"]
[Date "2017.10.09"]
[Round "2.7"]
[White "Behling, Robert"]
[Black "Vezzosi, Paolo"]
[Result "1/2-1/2"]
[ECO "A21"]
[WhiteElo "2081"]
[BlackElo "2299"]
[Annotator "ChessBase"]
[PlyCount "60"]
[EventType "swiss"]
[EventCountry "ITA"]
[TimeControl "40/5400+30:1800+30"]

1. c4 {[%emt 0:00:30]} e5 {[%emt 0:01:00]} 2. Nc3 {[%emt 0:00:00]} Bb4 {[%emt 0:02:30]} 3. Qc2 {[%emt 0:03:00]} Nf6 {[%emt 0:01:30]} 4. e3 {[%emt 0:01:30]} O-O {[%emt 0:00:30]} 5. Nge2 {[%emt 0:02:30]} Re8 {[%emt 0:02:30]} 6. a3 {[%emt 0:00:30]} Bf8 {[%emt 0:00:30]} 7. d4 {[%emt 0:07:30]} exd4 {[%emt 0:24:30]} 8. Nxd4 {[%emt 0:01:30]} d6 {[%emt 0:07:30]} 9. Bd3 {[%emt 0:03:30]} Nbd7 {[%emt 0:00:30]} 10. O-O {[%emt 0:03:30]} Ne5 {[%emt 0:03:30]} 11. Be2 {[%emt 0:00:30]} Bd7 {[%emt 0:04:30]} 12. b3 {[%emt 0:09:30]} c5 {[%emt 0:03:30]} 13. Nf3 {[%emt 0:03:30]} Bc6 {[%emt 0:00:30]} 14. Nxe5 {[%emt 0:00:30]} Rxe5 {[%emt 0:00:00]} 15. f3 {[%emt 0:02:30]} d5 {[%emt 0:03:00]} 16. cxd5 {[%emt 0:01:30]} Nxd5 {[%emt 0:00:30]} 17. Nxd5 {[%emt 0:00:30]} Rxd5 {[%emt 0:01:30]} 18. e4 {[%emt 0:00:30]} Rd7 {[%emt 0:02:30]} 19. Be3 {[%emt 0:00:30]} Qf6 {[%emt 0:07:30]} 20. Rad1 {[%emt 0:03:30]} Rc7 {[%emt 0:03:30]} 21. a4 {[%emt 0:02:30]} Re8 {[%emt 0:05:30]} 22. Bf2 {[%emt 0:05:30]} Bd6 {[%emt 0:02:30]} 23. Bc4 {[%emt 0:02:30]} b6 {[%emt 0:05:27]} 24. Bd5 {[%emt 0:02:30]} Qh6 {[%emt 0:05:10]} 25. g3 {[%emt 0:01:30]} Qg6 {[%emt 0:00:47]} 26. Bxc6 {[%emt 0:03:30]} Rxc6 {[%emt 0:00:04]} 27. Rd5 {[%emt 0:00:30]} h6 {[%emt 0:03:30]} 28. Rfd1 {[%emt 0:00:30]} Rec8 {[%emt 0:01:25]} 29. Qc4 {[%emt 0:02:30]} R8c7 {[%emt 0:02:00]} 30. Kg2 {[%emt 0:02:30]} Qe6 {[%emt 0:01:27]} 1/2-1/2

[Event "39th Citta Arco Open 2017"]
[Site "Arco"]
[Date "2017.10.09"]
[Round "2.8"]
[White "Molnar, Bela"]
[Black "Popa, Claudiu"]
[Result "1-0"]
[ECO "D36"]
[WhiteElo "2290"]
[BlackElo "2088"]
[Annotator "ChessBase"]
[PlyCount "51"]
[EventType "swiss"]
[EventCountry "ITA"]
[TimeControl "40/5400+30:1800+30"]

1. d4 {[%emt 0:00:30]} d5 {[%emt 0:01:00]} 2. c4 {[%emt 0:00:00]} e6 {[%emt 0:00:30]} 3. Nc3 {[%emt 0:00:00]} Nf6 {[%emt 0:00:30]} 4. cxd5 {[%emt 0:00:30]} exd5 {[%emt 0:00:30]} 5. Bg5 {[%emt 0:00:30]} Be7 {[%emt 0:00:30]} 6. e3 {[%emt 0:00:30]} c6 {[%emt 0:00:30]} 7. Bd3 {[%emt 0:00:30]} O-O {[%emt 0:00:30]} 8. Qc2 {[%emt 0:00:30]} Nbd7 {[%emt 0:00:30]} 9. Nge2 {[%emt 0:00:30]} Re8 {[%emt 0:01:30]} 10. O-O {[%emt 0:00:30]} Nf8 {[%emt 0:00:30]} 11. f3 {[%emt 0:03:30]} Nh5 {[%emt 0:11:30]} 12. Bxe7 {[%emt 0:02:30]} Qxe7 {[%emt 0:01:30]} 13. e4 {[%emt 0:00:30]} dxe4 {[%emt 0:05:30]} 14. fxe4 {[%emt 0:00:30]} Qg5 {[%emt 0:03:30]} 15. Kh1 {[%emt 0:00:30]} Ng6 {[%emt 0:02:30]} 16. e5 {[%emt 0:03:30]} Bg4 {[%emt 0:07:30]} 17. Ne4 {[%emt 0:02:30]} Qe3 {[%emt 0:04:30]} 18. Nd6 {[%emt 0:00:30]} Re7 {[%emt 0:08:30]} 19. Rae1 {[%emt 0:14:30]} Qh6 {[%emt 0:05:30]} 20. Qb3 {[%emt 0:09:30]} Be6 {[%emt 0:05:30]} 21. Bc4 {[%emt 0:06:30]} Qg5 {[%emt 0:28:34]} 22. Nxf7 {[%emt 0:03:30]} Bxf7 {[%emt 0:00:21]} 23. Bxf7+ {[%emt 0:00:30]} Kh8 {[%emt 0:00:13]} 24. Bxg6 {[%emt 0:02:30]} Qxg6 {[%emt 0:01:15]} 25. Qf3 {[%emt 0:00:30]} Kg8 {[%emt 0:03:01]} 26. g4 {[%emt 0:00:30]} 1-0

[Event "39th Citta Arco Open 2017"]
[Site "Arco"]
[Date "2017.10.10"]
[Round "2.9"]
[White "Mastroddi, Emiliano"]
[Black "Dittmar, Peter"]
[Result "1/2-1/2"]
[ECO "B15"]
[WhiteElo "2053"]
[BlackElo "2266"]
[Annotator "ChessBase"]
[PlyCount "74"]
[EventType "swiss"]
[EventCountry "ITA"]
[TimeControl "40/5400+30:1800+30"]

1. e4 {[%emt 0:00:30]} c6 {[%emt 0:05:00]} 2. d4 {[%emt 0:00:30]} d5 {[%emt 0:00:30]} 3. Nc3 {[%emt 0:00:30]} dxe4 {[%emt 0:00:30]} 4. Nxe4 {[%emt 0:00:30]} Nf6 {[%emt 0:00:30]} 5. Nxf6+ {[%emt 0:00:30]} exf6 {[%emt 0:00:30]} 6. c3 {[%emt 0:00:30]} Bd6 {[%emt 0:03:30]} 7. Bd3 {[%emt 0:03:30]} O-O {[%emt 0:00:00]} 8. Qc2 {[%emt 0:00:00]} Kh8 {[%emt 0:00:00]} 9. Ne2 {[%emt 0:01:00]} Re8 {[%emt 0:01:30]} 10. Be3 {[%emt 0:01:30]} Nd7 {[%emt 0:01:30]} 11. O-O-O {[%emt 0:04:30]} Nf8 {[%emt 0:00:30]} 12. Bf5 {[%emt 0:08:30]} Qa5 {[%emt 0:08:30]} 13. Bxc8 {[%emt 0:01:30]} Raxc8 {[%emt 0:00:30]} 14. Kb1 {[%emt 0:01:30]} c5 {[%emt 0:08:30]} 15. dxc5 {[%emt 0:08:30]} Bxc5 {[%emt 0:00:00]} 16. Bxc5 {[%emt 0:00:30]} Qxc5 {[%emt 0:00:00]} 17. Nd4 {[%emt 0:00:00]} Ne6 {[%emt 0:04:30]} 18. Rhe1 {[%emt 0:23:00]} g6 {[%emt 0:13:30]} 19. f3 {[%emt 0:09:30]} Re7 {[%emt 0:03:30]} 20. Nxe6 {[%emt 0:01:30]} fxe6 {[%emt 0:02:30]} 21. Re2 {[%emt 0:01:30]} Kg7 {[%emt 0:03:30]} 22. Red2 {[%emt 0:02:30]} Rcc7 {[%emt 0:00:30]} 23. Qe4 {[%emt 0:01:30]} Qc6 {[%emt 0:06:30]} 24. Qxc6 {[%emt 0:08:30]} Rxc6 {[%emt 0:00:30]} 25. Kc2 {[%emt 0:00:44]} e5 {[%emt 0:00:30]} 26. Rd5 {[%emt 0:02:10]} Rcc7 {[%emt 0:00:30]} 27. b3 {[%emt 0:00:22]} f5 {[%emt 0:02:30]} 28. c4 {[%emt 0:00:40]} e4 {[%emt 0:01:30]} 29. fxe4 {[%emt 0:00:59]} Rxe4 {[%emt 0:00:00]} 30. Rd7+ {[%emt 0:02:45]} Re7 {[%emt 0:02:00]} 31. Rxc7 {[%emt 0:00:57]} Rxc7 {[%emt 0:02:30]} 32. Rd6 {[%emt 0:04:07]} Kf7 {[%emt 0:00:30]} 33. Kd3 {[%emt 0:01:06]} Ke7 {[%emt 0:00:30]} 34. Rd5 {[%emt 0:00:37]} Rc6 {[%emt 0:01:30]} 35. Kd4 {[%emt 0:02:55]} Ke6 {[%emt 0:04:30]} 36. a4 {[%emt 0:07:27]} Rb6 {[%emt 0:02:30]} 37. Kc3 {[%emt 0:00:41]} Rc6 {[%emt 0:03:30]} 1/2-1/2

[Event "39th Citta Arco Open 2017"]
[Site "Arco"]
[Date "2017.10.09"]
[Round "2.10"]
[White "Luciani, Carlo"]
[Black "De Vita, Gianni"]
[Result "1-0"]
[ECO "B92"]
[WhiteElo "2261"]
[BlackElo "2058"]
[Annotator "ChessBase"]
[PlyCount "45"]
[EventType "swiss"]
[EventCountry "ITA"]
[TimeControl "40/5400+30:1800+30"]

1. e4 {[%emt 0:00:30]} c5 {[%emt 0:01:00]} 2. Nf3 {[%emt 0:00:00]} d6 {[%emt 0:01:30]} 3. d4 {[%emt 0:00:00]} cxd4 {[%emt 0:00:00]} 4. Nxd4 {[%emt 0:00:00]} Nf6 {[%emt 0:00:00]} 5. Nc3 {[%emt 0:00:00]} a6 {[%emt 0:01:30]} 6. Be2 {[%emt 0:00:30]} e5 {[%emt 0:01:30]} 7. Nb3 {[%emt 0:00:00]} Be6 {[%emt 0:01:30]} 8. O-O {[%emt 0:01:00]} Qc7 {[%emt 0:01:30]} 9. a4 {[%emt 0:07:30]} b6 {[%emt 0:02:30]} 10. f4 {[%emt 0:03:30]} Nbd7 {[%emt 0:06:30]} 11. Be3 {[%emt 0:04:30]} Bc4 {[%emt 0:07:30]} 12. Nd2 {[%emt 0:02:30]} Bxe2 {[%emt 0:01:30]} 13. Qxe2 {[%emt 0:00:30]} Nc5 {[%emt 0:10:30]} 14. Kh1 {[%emt 0:12:30]} Qb7 {[%emt 0:03:30]} 15. fxe5 {[%emt 0:07:30]} dxe5 {[%emt 0:02:30]} 16. Bg5 {[%emt 0:00:30]} Be7 {[%emt 0:05:30]} 17. Bxf6 {[%emt 0:00:30]} Bxf6 {[%emt 0:01:30]} 18. Nd5 {[%emt 0:00:30]} Nd7 {[%emt 0:21:30]} 19. Nc4 {[%emt 0:04:30]} O-O {[%emt 0:04:30]} 20. Ra3 {[%emt 0:03:30]} Bd8 {[%emt 0:05:24]} 21. Rc3 {[%emt 0:08:30]} b5 {[%emt 0:10:04]} 22. Nd6 {[%emt 0:02:30]} Qb8 {[%emt 0:05:38]} 23. Nf5 {[%emt 0:00:00]} 1-0

[Event "39th Citta Arco Open 2017"]
[Site "Arco"]
[Date "2017.10.09"]
[Round "2.11"]
[White "Deissenberger, Thomas"]
[Black "Ruecker, Benjamin"]
[Result "0-1"]
[ECO "B08"]
[WhiteElo "2032"]
[BlackElo "2261"]
[Annotator "ChessBase"]
[PlyCount "66"]
[EventType "swiss"]
[EventCountry "ITA"]
[TimeControl "40/5400+30:1800+30"]

1. e4 {[%emt 0:00:30]} g6 {[%emt 0:01:00]} 2. d4 {[%emt 0:00:00]} Bg7 {[%emt 0:00:00]} 3. Nc3 {[%emt 0:01:00]} c6 {[%emt 0:01:00]} 4. Nf3 {[%emt 0:05:30]} d6 {[%emt 0:00:30]} 5. Be3 {[%emt 0:05:30]} Nf6 {[%emt 0:02:30]} 6. h3 {[%emt 0:01:30]} Qa5 {[%emt 0:03:30]} 7. Nd2 {[%emt 0:07:30]} Nbd7 {[%emt 0:04:30]} 8. Be2 {[%emt 0:07:30]} O-O {[%emt 0:04:30]} 9. O-O {[%emt 0:01:30]} b5 {[%emt 0:04:30]} 10. a3 {[%emt 0:01:30]} Bb7 {[%emt 0:03:30]} 11. Nb3 {[%emt 0:04:30]} Qc7 {[%emt 0:00:30]} 12. f4 {[%emt 0:17:30]} a6 {[%emt 0:11:30]} 13. Bf3 {[%emt 0:03:30]} Rad8 {[%emt 0:07:30]} 14. Qe2 {[%emt 0:03:30]} e5 {[%emt 0:07:30]} 15. Rad1 {[%emt 0:02:30]} exd4 {[%emt 0:02:30]} 16. Nxd4 {[%emt 0:01:30]} Rfe8 {[%emt 0:00:30]} 17. g4 {[%emt 0:08:30]} Nc5 {[%emt 0:07:30]} 18. Qg2 {[%emt 0:01:30]} Nfxe4 {[%emt 0:10:30]} 19. Nxe4 {[%emt 0:01:30]} Nxe4 {[%emt 0:01:30]} 20. Bxe4 {[%emt 0:01:30]} d5 {[%emt 0:01:30]} 21. Bxg6 {[%emt 0:06:08]} hxg6 {[%emt 0:03:30]} 22. Qf2 {[%emt 0:05:10]} c5 {[%emt 0:01:30]} 23. Nf3 {[%emt 0:01:38]} d4 {[%emt 0:00:57]} 24. Bc1 {[%emt 0:00:30]} Qc6 {[%emt 0:02:04]} 25. Kg2 {[%emt 0:03:45]} c4 {[%emt 0:02:09]} 26. Kg3 {[%emt 0:01:28]} d3 {[%emt 0:03:01]} 27. cxd3 {[%emt 0:02:00]} Rxd3 {[%emt 0:00:11]} 28. Rxd3 {[%emt 0:01:42]} cxd3 {[%emt 0:00:06]} 29. Ne5 {[%emt 0:00:38]} Qd5 {[%emt 0:02:54]} 30. Qf3 {[%emt 0:03:08]} Rxe5 {[%emt 0:03:30]} 31. fxe5 {[%emt 0:00:36]} Bxe5+ {[%emt 0:00:13]} 32. Bf4 {[%emt 0:00:42]} Qxf3+ {[%emt 0:00:35]} 33. Rxf3 {[%emt 0:00:23]} Bxf3 {[%emt 0:00:00]} 0-1

[Event "39th Citta Arco Open 2017"]
[Site "Arco"]
[Date "2017.10.09"]
[Round "2.12"]
[White "Nazarenus, Moritz"]
[Black "Battistella, Stefano"]
[Result "1-0"]
[ECO "A53"]
[WhiteElo "2241"]
[BlackElo "2041"]
[Annotator "ChessBase"]
[PlyCount "61"]
[EventType "swiss"]
[EventCountry "ITA"]
[TimeControl "40/5400+30:1800+30"]

1. d4 {[%emt 0:00:30]} Nf6 {[%emt 0:01:00]} 2. c4 {[%emt 0:00:00]} d6 {[%emt 0:00:00]} 3. Nc3 {[%emt 0:00:00]} Bf5 {[%emt 0:00:00]} 4. f3 {[%emt 0:06:30]} e5 {[%emt 0:02:30]} 5. e4 {[%emt 0:02:30]} exd4 {[%emt 0:00:30]} 6. Qxd4 {[%emt 0:00:30]} Nc6 {[%emt 0:00:00]} 7. Qd1 {[%emt 0:00:30]} Be6 {[%emt 0:01:00]} 8. Be3 {[%emt 0:05:30]} g6 {[%emt 0:05:30]} 9. Bd3 {[%emt 0:02:30]} Ne5 {[%emt 0:04:30]} 10. Nge2 {[%emt 0:02:30]} Nfd7 {[%emt 0:12:30]} 11. b3 {[%emt 0:03:30]} Bh6 {[%emt 0:11:30]} 12. Bxh6 {[%emt 0:08:30]} Qh4+ {[%emt 0:00:00]} 13. Ng3 {[%emt 0:00:30]} Qxh6 {[%emt 0:00:00]} 14. Qd2 {[%emt 0:01:30]} Nxd3+ {[%emt 0:11:30]} 15. Qxd3 {[%emt 0:00:00]} O-O {[%emt 0:04:30]} 16. Qd2 {[%emt 0:04:00]} Qg7 {[%emt 0:13:30]} 17. O-O {[%emt 0:01:30]} f5 {[%emt 0:07:30]} 18. exf5 {[%emt 0:01:30]} Bxf5 {[%emt 0:00:30]} 19. Rae1 {[%emt 0:04:30]} Ne5 {[%emt 0:06:31]} 20. Nxf5 {[%emt 0:01:30]} gxf5 {[%emt 0:00:16]} 21. f4 {[%emt 0:12:30]} Nc6 {[%emt 0:00:51]} 22. Rf3 {[%emt 0:04:30]} Kh8 {[%emt 0:01:35]} 23. Rg3 {[%emt 0:01:30]} Qf6 {[%emt 0:08:25]} 24. Nd5 {[%emt 0:02:30]} Qd4+ {[%emt 0:00:24]} 25. Qxd4+ {[%emt 0:00:30]} Nxd4 {[%emt 0:00:02]} 26. Nxc7 {[%emt 0:01:30]} Rac8 {[%emt 0:01:16]} 27. Nd5 {[%emt 0:01:30]} b5 {[%emt 0:06:18]} 28. Re7 {[%emt 0:01:30]} Rfe8 {[%emt 0:00:50]} 29. Rge3 {[%emt 0:01:30]} Rxe7 {[%emt 0:00:39]} 30. Rxe7 {[%emt 0:00:00]} bxc4 {[%emt 0:00:16]} 31. Nf6 {[%emt 0:01:00]} 1-0

[Event "39th Citta Arco Open 2017"]
[Site "Arco"]
[Date "2017.10.10"]
[Round "2.13"]
[White "Passerotti, Pierluigi"]
[Black "Tonina, Filippo"]
[Result "1/2-1/2"]
[ECO "B07"]
[WhiteElo "2210"]
[BlackElo "2021"]
[Annotator "ChessBase"]
[PlyCount "165"]
[EventType "swiss"]
[EventCountry "ITA"]
[TimeControl "40/5400+30:1800+30"]

1. d4 {[%emt 0:05:30]} d6 {[%emt 0:01:00]} 2. e4 {[%emt 0:00:30]} Nf6 {[%emt 0:00:30]} 3. Nc3 {[%emt 0:00:30]} g6 {[%emt 0:00:00]} 4. Be3 {[%emt 0:00:30]} c6 {[%emt 0:00:00]} 5. h3 {[%emt 0:00:00]} b5 {[%emt 0:00:30]} 6. e5 {[%emt 0:01:00]} dxe5 {[%emt 0:06:30]} 7. dxe5 {[%emt 0:00:30]} Qxd1+ {[%emt 0:00:30]} 8. Rxd1 {[%emt 0:00:00]} Nfd7 {[%emt 0:01:30]} 9. f4 {[%emt 0:00:00]} Nb6 {[%emt 0:03:30]} 10. Bd3 {[%emt 0:02:30]} b4 {[%emt 0:15:30]} 11. Ne4 {[%emt 0:08:30]} Nd5 {[%emt 0:00:30]} 12. Bc1 {[%emt 0:02:30]} Bf5 {[%emt 0:08:30]} 13. Ne2 {[%emt 0:03:30]} e6 {[%emt 0:02:30]} 14. N2g3 {[%emt 0:01:30]} Be7 {[%emt 0:01:30]} 15. Ke2 {[%emt 0:04:30]} Nd7 {[%emt 0:08:30]} 16. Kf3 {[%emt 0:17:30]} Nc5 {[%emt 0:13:30]} 17. Nxc5 {[%emt 0:00:30]} Bxc5 {[%emt 0:00:30]} 18. Nxf5 {[%emt 0:00:30]} gxf5 {[%emt 0:01:30]} 19. g4 {[%emt 0:00:00]} Ne7 {[%emt 0:07:30]} 20. Bd2 {[%emt 0:08:00]} O-O-O {[%emt 0:02:30]} 21. Be1 {[%emt 0:05:30]} h5 {[%emt 0:03:30]} 22. gxh5 {[%emt 0:18:12]} Rxh5 {[%emt 0:01:30]} 23. Ba6+ {[%emt 0:00:05]} Kc7 {[%emt 0:00:30]} 24. Rxd8 {[%emt 0:00:13]} Kxd8 {[%emt 0:00:30]} 25. Be2 {[%emt 0:00:30]} Ng6 {[%emt 0:03:41]} 26. Kg3 {[%emt 0:04:19]} Rh4 {[%emt 0:02:14]} 27. Bd2 {[%emt 0:02:27]} Be7 {[%emt 0:01:47]} 28. Be3 {[%emt 0:01:24]} Kc7 {[%emt 0:04:25]} 29. Rf1 {[%emt 0:02:32]} a5 {[%emt 0:01:04]} 30. c3 {[%emt 0:02:39]} bxc3 {[%emt 0:01:07]} 31. bxc3 {[%emt 0:00:01]} Rh8 {[%emt 0:00:28]} 32. Rb1 {[%emt 0:00:38]} Rb8 {[%emt 0:00:56]} 33. Rxb8 {[%emt 0:00:12]} Kxb8 {[%emt 0:00:12]} 34. Bb6 {[%emt 0:01:13]} a4 {[%emt 0:01:10]} 35. Ba6 {[%emt 0:00:08]} Bh4+ {[%emt 0:03:39]} 36. Kf3 {[%emt 0:00:04]} Be7 {[%emt 0:00:16]} 37. Bf2 {[%emt 0:01:35]} Kc7 {[%emt 0:01:31]} 38. Be2 {[%emt 0:00:14]} Nh4+ {[%emt 0:01:13]} 39. Kg3 {[%emt 0:00:19]} Ng6 {[%emt 0:00:53]} 40. Bd4 {[%emt 0:04:14]} Bh4+ {[%emt 0:32:21]} 41. Kf3 {[%emt 0:30:02]} Be7 {[%emt 0:00:10]} 42. Bd1 {[%emt 0:00:17]} a3 {[%emt 0:00:30]} 43. Bb3 {[%emt 0:00:00]} Nh4+ {[%emt 0:00:00]} 44. Kg3 {[%emt 0:00:00]} Ng6 {[%emt 0:00:00]} 45. Be3 {[%emt 0:00:00]} Bh4+ {[%emt 0:00:00]} 46. Kf3 {[%emt 0:00:00]} Be7 {[%emt 0:00:00]} 47. Bf2 {[%emt 0:00:00]} Nh4+ {[%emt 0:00:00]} 48. Ke2 {[%emt 0:00:00]} Ng6 {[%emt 0:00:00]} 49. Bg3 {[%emt 0:00:00]} Kb6 {[%emt 0:00:00]} 50. Kd3 {[%emt 0:00:00]} Nh4 {[%emt 0:00:00]} 51. Bf2+ {[%emt 0:00:00]} Kc7 {[%emt 0:00:00]} 52. Bd1 {[%emt 0:00:00]} Kd7 {[%emt 0:00:00]} 53. Bh5 {[%emt 0:00:00]} Ke8 {[%emt 0:00:00]} 54. Be3 {[%emt 0:00:00]} Ng2 {[%emt 0:00:00]} 55. Bc1 {[%emt 0:00:00]} Nh4 {[%emt 0:00:00]} 56. Kc4 {[%emt 0:00:00]} Ng6 {[%emt 0:00:00]} 57. Kb3 {[%emt 0:00:00]} Kd7 {[%emt 0:00:00]} 58. c4 {[%emt 0:01:29]} Bc5 {[%emt 0:00:41]} 59. Bd2 {[%emt 0:02:31]} Kc7 {[%emt 0:01:25]} 60. Kc3 {[%emt 0:01:36]} Kd7 {[%emt 0:02:09]} 61. Kd3 {[%emt 0:01:29]} Kc7 {[%emt 0:00:16]} 62. Ke2 {[%emt 0:01:12]} Kd7 {[%emt 0:00:55]} 63. Be3 {[%emt 0:01:16]} Bb4 {[%emt 0:01:32]} 64. Kf3 {[%emt 0:00:25]} Ke7 {[%emt 0:00:41]} 65. Bf2 {[%emt 0:00:24]} c5 {[%emt 0:01:34]} 66. h4 {[%emt 0:03:47]} Kf8 {[%emt 0:00:31]} 67. Kg3 {[%emt 0:00:17]} Kg7 {[%emt 0:00:21]} 68. Be3 {[%emt 0:01:08]} Be1+ {[%emt 0:01:45]} 69. Kh3 {[%emt 0:00:00]} Bb4 {[%emt 0:00:00]} 70. Be2 {[%emt 0:00:36]} Kh6 {[%emt 0:00:03]} 71. h5 {[%emt 0:00:44]} Ne7 {[%emt 0:01:23]} 72. Bf2 {[%emt 0:00:10]} Nc6 {[%emt 0:00:34]} 73. Bh4 {[%emt 0:00:06]} Nd4 {[%emt 0:00:21]} 74. Bg5+ {[%emt 0:00:04]} Kh7 {[%emt 0:00:32]} 75. Bd1 {[%emt 0:00:02]} Nc6 {[%emt 0:01:32]} 76. Kg2 {[%emt 0:00:24]} Na5 {[%emt 0:00:11]} 77. Be2 {[%emt 0:00:00]} Nb3 {[%emt 0:00:19]} 78. Bd3 {[%emt 0:00:30]} Nc1 {[%emt 0:00:26]} 79. Bb1 {[%emt 0:00:01]} Ne2 {[%emt 0:00:14]} 80. Bc2 {[%emt 0:00:07]} Nc1 {[%emt 0:00:36]} 81. Bb1 {[%emt 0:00:56]} Ne2 {[%emt 0:00:19]} 82. Bc2 {[%emt 0:00:02]} Nc1 {[%emt 0:01:18]} 83. Bb1 {[%emt 0:00:05]} 1/2-1/2

[Event "39th Citta Arco Open 2017"]
[Site "Arco"]
[Date "2017.10.09"]
[Round "2.14"]
[White "De Eccher, Stefano"]
[Black "Wernet, Andreas"]
[Result "1/2-1/2"]
[ECO "C10"]
[WhiteElo "2193"]
[BlackElo "2012"]
[Annotator "ChessBase"]
[PlyCount "105"]
[EventType "swiss"]
[EventCountry "ITA"]
[TimeControl "40/5400+30:1800+30"]

1. e4 {[%emt 0:00:30]} e6 {[%emt 0:01:00]} 2. d4 {[%emt 0:00:00]} d5 {[%emt 0:00:00]} 3. Nc3 {[%emt 0:00:00]} Nc6 {[%emt 0:00:00]} 4. Nf3 {[%emt 0:00:30]} Nf6 {[%emt 0:00:30]} 5. e5 {[%emt 0:00:30]} Ne4 {[%emt 0:00:00]} 6. Ne2 {[%emt 0:01:30]} Be7 {[%emt 0:01:00]} 7. Ng3 {[%emt 0:05:30]} f5 {[%emt 0:07:30]} 8. c3 {[%emt 0:07:30]} Bd7 {[%emt 0:03:30]} 9. h4 {[%emt 0:12:30]} Nxg3 {[%emt 0:05:30]} 10. fxg3 {[%emt 0:00:30]} Qc8 {[%emt 0:08:30]} 11. Bd3 {[%emt 0:02:30]} Nd8 {[%emt 0:00:30]} 12. Bg5 {[%emt 0:06:30]} Nf7 {[%emt 0:09:30]} 13. Bxe7 {[%emt 0:03:30]} Kxe7 {[%emt 0:00:30]} 14. g4 {[%emt 0:09:30]} fxg4 {[%emt 0:18:30]} 15. Ng5 {[%emt 0:00:30]} Nxg5 {[%emt 0:05:30]} 16. hxg5 {[%emt 0:00:30]} Be8 {[%emt 0:03:30]} 17. Rxh7 {[%emt 0:09:30]} Rxh7 {[%emt 0:00:30]} 18. Bxh7 {[%emt 0:00:30]} Bh5 {[%emt 0:02:30]} 19. g6 {[%emt 0:04:30]} Qf8 {[%emt 0:00:30]} 20. Qb3 {[%emt 0:22:33]} g3 {[%emt 0:10:30]} 21. Qb4+ {[%emt 0:06:00]} Kd7 {[%emt 0:00:30]} 22. Qb5+ {[%emt 0:00:23]} Kd8 {[%emt 0:04:25]} 23. Qf1 {[%emt 0:00:35]} Ke7 {[%emt 0:00:36]} 24. Kd2 {[%emt 0:00:15]} b6 {[%emt 0:02:51]} 25. Ke3 {[%emt 0:00:18]} c6 {[%emt 0:01:36]} 26. Qf4 {[%emt 0:00:12]} Qxf4+ {[%emt 0:01:39]} 27. Kxf4 {[%emt 0:00:01]} Rf8+ {[%emt 0:00:06]} 28. Kxg3 {[%emt 0:00:17]} Be2 {[%emt 0:00:36]} 29. b4 {[%emt 0:01:17]} Bd3 {[%emt 0:01:14]} 30. a4 {[%emt 0:01:05]} Rf5 {[%emt 0:00:32]} 31. Kh4 {[%emt 0:02:11]} a6 {[%emt 0:03:01]} 32. Ra2 {[%emt 0:00:54]} Bc4 {[%emt 0:01:16]} 33. Rb2 {[%emt 0:00:34]} Rf1 {[%emt 0:01:57]} 34. Bg8 {[%emt 0:00:50]} Bd3 {[%emt 0:01:04]} 35. Kg5 {[%emt 0:00:35]} Rf5+ {[%emt 0:00:25]} 36. Kh4 {[%emt 0:00:39]} Rf1 {[%emt 0:00:04]} 37. a5 {[%emt 0:00:42]} b5 {[%emt 0:00:04]} 38. Kg5 {[%emt 0:01:05]} Rf5+ {[%emt 0:00:03]} 39. Kh4 {[%emt 0:00:00]} Rf1 {[%emt 0:00:55]} 40. Bf7 {[%emt 0:01:39]} Rh1+ {[%emt 0:31:26]} 41. Kg5 {[%emt 0:30:47]} Rf1 {[%emt 0:00:00]} 42. g4 {[%emt 0:00:00]} Rg1 {[%emt 0:00:00]} 43. Rf2 {[%emt 0:00:00]} Bf5 {[%emt 0:00:00]} 44. Rf4 {[%emt 0:00:00]} Bd3 {[%emt 0:00:00]} 45. Bg8 {[%emt 0:00:00]} Rf1 {[%emt 0:00:00]} 46. Rf7+ {[%emt 0:00:00]} Rxf7 {[%emt 0:00:00]} 47. gxf7 {[%emt 0:00:00]} Kf8 {[%emt 0:00:00]} 48. Kh5 {[%emt 0:00:00]} Bb1 {[%emt 0:00:00]} 49. g5 {[%emt 0:00:00]} Bf5 {[%emt 0:00:00]} 50. Bh7 {[%emt 0:00:00]} Bxh7 {[%emt 0:00:00]} 51. g6 {[%emt 0:00:00]} Bg8 {[%emt 0:00:00]} 52. fxg8=Q+ {[%emt 0:00:00]} Kxg8 {[%emt 0:00:00]} 53. Kg5 1/2-1/2